Cogmind - Beta 14 @@@ ROGUE MODE // 2025.01.04 @ 10:01:03 Player: sag Result: Destroyed by G-34 Mercenary with Small Laser Performance ------------- Evolutions (1) 500 Regions Visited (3) 600 Robots Destroyed (28) 140 Value Destroyed (578) 578 Prototype IDs (0) 0 Alien Tech Used (0) 0 Bonus (0) 0 TOTAL SCORE: 1818 Bonus ------- None Cogmind --------- Core Integrity 0/400 Matter 154/300 Energy 99/100 System Corruption 0% Temperature Cool (12) Movement Core (350) Ox6 Location -9/Materials Parts ------- > --- POWER (2) -------- (None) > --- PROPULSION (3) --- (None) > --- UTILITY (2) ------ Large Storage Unit > --- WEAPON (2) ------- (None) > --- INVENTORY (15) --- Ion Engine Light Treads Aluminum Leg Aluminum Leg Heat Sink Structural Scanner Light Armor Plating Light Armor Plating Small Laser Assault Rifle Peak State ------------ > --- POWER ------------ Ion Engine Ion Engine > --- PROPULSION ------- Compact Wheel Flight Unit > --- UTILITY ---------- Improved Heat Sink Large Storage Unit > --- WEAPON ----------- EMP Blaster Rocket Launcher > --- INVENTORY -------- Ion Engine Light Treads Aluminum Leg Aluminum Leg Structural Scanner Light Armor Plating Light Armor Plating Small Laser Assault Rifle Light Assault Rifle Grenade Launcher [Rating: 13] Favorites ----------- Power Ion Engine Engine Ion Engine Propulsion Light Treads Treads Light Treads Wheel Compact Wheel Flight Unit Flight Unit Utility Large Storage Unit Device Improved Heat Sink Storage Large Storage Unit Protection Light Armor Plating Weapon EMP Blaster Energy Gun Small Laser Ballistic Gun Light Assault Rifle Launcher EMP Blaster Build | -11 -10 -10 -9 ------- Run | Yrd Mat Min Mat Slots Evolved 2 | . . . 2 Power 1 | . . . 1 Propulsion 1 | . . . 1 Utility . | . . . . Weapon . | . . . . Parts Attached 23 | 6 7 5 5 Power 3 | 1 . 1 1 Engine 3 | 1 . 1 1 Core . | . . . . Reactor . | . . . . Propulsion 6 | 2 2 1 1 Treads 2 | . 2 . . Leg . | . . . . Wheel 3 | 2 . 1 . Hover . | . . . . Flight 1 | . . . 1 Utility 4 | 1 2 1 . Device 1 | . . 1 . Storage 2 | 1 1 . . Processor . | . . . . Hackware . | . . . . Protection 1 | . 1 . . Artifact . | . . . . Weapon 10 | 2 3 2 3 Energy Gun 1 | . . . 1 Energy Cannon . | . . . . Ballistic Gun 4 | 2 1 . 1 Ballistic Cannon . | . . . . Launcher 5 | . 2 2 1 Special Weapon . | . . . . Impact Weapon . | . . . . Slashing Weapon . | . . . . Piercing Weapon . | . . . . Special Melee Weapon . | . . . . Unidentified Prototypes . | . . . . Parts Lost 13 | . 3 1 9 Power 3 | . 1 . 2 Propulsion 3 | . . 1 2 Utility 2 | . 1 . 1 Weapon 5 | . 1 . 4 Highest Loss Streak 4 | . 3 1 4 To Critical Strikes . | . . . . Average Slot Usage (%) 81 | . 93 85 70 Engine 13 | . 11 13 15 Treads 11 | . 23 16 . Wheel 6 | . 4 6 9 Flight 3 | . . . 6 Device 4 | . . 7 8 Storage 12 | . 14 14 11 Protection 4 | . 11 . . Ballistic Gun 9 | . 18 8 1 Launcher 14 | . 7 20 18 Peak Build Rating 13 | 6 8 12 13 Average Rating 8 | 2 7 9 10 On Entrance 5 | . 6 5 12 Naked Turns . | . . . . Heaviest Build 39 | 11 32 34 39 Greatest Support 40 | 26 40 40 4 Greatest Overweight (x) 11 | 2 . 2 11 Average Overweight (x) 1 | . . 1 8 Largest Inventory Capacity 15 | 8 15 15 15 Average Capacity 13 | 7 13 15 15 Most Carried 13 | 8 12 13 12 Average Carried 10 | 5 9 11 11 Final Capacity 15 | 8 15 15 15 Final Carried 12 | 6 12 12 10 Class Distribution -------------------- 100% | Mutant Dominant Class ---------------- Mutant | -10/Materials Mutant | -10/Mines Mutant | -9/Materials Resources | -11 -10 -10 -9 ----------- Run | Yrd Mat Min Mat Matter Collected 611 | 246 59 154 152 Remotely . | . . . . Salvage Created 575 | . 253 . 322 Parts 51 | . 23 . 28 Haulers Intercepted 1 | . . . 1 Recyclers Shooed 1 | . . . 1 Parts Field Recycled . | . . . . Retrieved Matter . | . . . . Parts Self-Destructed . | . . . . Prevented . | . . . . Kills | -11 -10 -10 -9 ------- Run | Yrd Mat Min Mat Combat Hostiles Destroyed 13 | . 8 . 5 AOE 13 | . 8 . 5 Classes Destroyed 11 | . 8 . 3 Worker 2 | . 1 . 1 Builder 4 | . . . 4 Tunneler 1 | . 1 . . Hauler 1 | . . . 1 Recycler 1 | . 1 . . Mechanic 1 | . 1 . . Operator 1 | . 1 . . Watcher 4 | . 2 . 2 Swarmer 3 | . 3 . . Grunt 8 | . 5 . 3 Sentry 2 | . . . 2 Best Kill Streak 11 | . 11 . 6 Combat Bots Only 4 | . 4 . 2 Max Kills in Single Turn 3 | . 3 . 2 Gunslinging . | . . . . Exploded 3 | . 3 . 1 Melee . | . . . . Uniques/NPCs Destroyed . | . . . . Combat | -11 -10 -10 -9 -------- Run | Yrd Mat Min Mat Hostile Shots Fired 152 | . 46 15 91 Missed 51 | . 17 5 29 Damage Taken 1710 | . 656 143 911 Core 516 | . 111 . 405 Absorbed by Shields . | . . . . Core Remaining (%) 77 | 100 . 55 . Volleys Fired 43 | . 21 2 20 Largest 2 | . 2 2 2 Hottest 66 | . 60 53 66 Shots Fired 73 | . 35 4 34 Gun 35 | . 20 2 13 Cannon . | . . . . Launcher 38 | . 15 2 21 Special . | . . . . Kinetic 35 | . 20 2 13 Thermal . | . . . . Explosive 29 | . 15 . 14 Electromagnetic 9 | . . 2 7 Robot Hit Streak 10 | . 8 1 10 Robot Miss Streak 3 | . 3 2 2 Penetration Max . | . . . . Secondary Targets . | . . . . Shots Hit Robots 45 | . 20 2 23 Core Hits 48 | . 26 . 22 Critical Kills . | . . . . Critical Parts Destroyed . | . . . . Critical Strikes . | . . . . Melee Attacks . | . . . . Impact . | . . . . Slashing . | . . . . Piercing . | . . . . Sneak Attacks . | . . . . Combat Hostiles . | . . . . Follow-up Attacks . | . . . . Damage Inflicted 1884 | . 1053 93 738 Guns 182 | . 103 . 79 Cannons . | . . . . Explosions 1702 | . 950 93 659 Melee . | . . . . Ramming . | . . . . Kinetic 182 | . 103 . 79 Thermal . | . . . . Explosive 1445 | . 950 . 495 Electromagnetic 257 | . . 93 164 Impact . | . . . . Slashing . | . . . . Piercing . | . . . . Highest Corruption 6 | . 6 6 . Average Corruption 6 | . 6 6 . Corruption Purged . | . . . . Corruption Blocked . | . . . . Effects 7 | . 3 4 . Matter Fused 3 | . 2 1 . Heat Flow Errors 1 | . . 1 . Parts Fused 1 | . 1 . . Data Loss (minor) 1 | . . 1 . Alerts 1 | . . 1 . Overload Shots . | . . . . Overflow Damage 53 | . 45 . 8 Projectiles . | . . . . Explosions 53 | . 45 . 8 Melee . | . . . . Knockbacks . | . . . . Impact . | . . . . Kinetic . | . . . . Secondary . | . . . . Self-Inflicted Damage 126 | . 60 6 60 Shots 8 | . 3 1 4 Rammed . | . . . . Targets Rammed . | . . . . Kicked . | . . . . Crushed . | . . . . Highest Temperature 130 | . 87 130 6 Average Temperature 30 | . 31 41 4 Received Heat Transfer 474 | . 123 69 282 Siege Activations . | . . . . Robots Corrupted . | . . . . Combat Hostiles . | . . . . Parts Fried . | . . . . Impact Corruptions . | . . . . Robots Melted . | . . . . Combat Hostiles . | . . . . Parts Melted . | . . . . Heat Transferred . | . . . . Parts Sabotaged . | . . . . Parts Stolen . | . . . . Parts Stripped . | . . . . Power Chain Reactions 1 | . . . 1 Alert | -11 -10 -10 -9 ------- Run | Yrd Mat Min Mat Peak Influence 233 | . 229 96 233 Initial 81 | . . 81 33 Average 66 | . 47 87 87 Maximum Alert Level 1 | . 1 . 1 Low Security (%) 89 | 100 85 100 90 Level 1 10 | . 14 . 9 Level 2 . | . . . . Level 3 . | . . . . Level 4 . | . . . . Level 5 . | . . . . High Security . | . . . . Max Security . | . . . . Squads Dispatched 4 | . 2 . 2 Investigation 1 | . . . 1 Extermination . | . . . . Reinforcement 3 | . 2 . 1 Assault . | . . . . Garrison . | . . . . Intercept . | . . . . Searches Triggered . | . . . . Construction Impeded 1 | . . . 1 Haulers Reinforced . | . . . . Active Scanning Responses . | . . . . Cargo Convoy Interrupts . | . . . . Stealth | -11 -10 -10 -9 --------- Run | Yrd Mat Min Mat Distress Signals 5 | . 2 . 3 Communications Jammed . | . . . . Distress Signals . | . . . . Times Spotted 30 | . 14 2 14 Peak Tracking Total 4 | . 4 2 4 Tactical Retreats . | . . . . Traps | -11 -10 -10 -9 ------- Run | Yrd Mat Min Mat Traps Triggered 1 | . . . 1 Indirectly 1 | . . . 1 Trap Hack Attempts . | . . . . Triggered . | . . . . Disarmed . | . . . . Reprogrammed . | . . . . Reused . | . . . . Traps Extracted . | . . . . Installed . | . . . . Triggered 1 | . . . 1 Machines | -11 -10 -10 -9 ---------- Run | Yrd Mat Min Mat Machines Disabled 3 | . . . 3 Max in Single Turn 1 | . . . 1 Machines Repaired . | . . . . Machines Dismantled . | . . . . Machines Sabotaged . | . . . . Overloaded Fab Kills . | . . . . Hacking | -11 -10 -10 -9 --------- Run | Yrd Mat Min Mat Machines Accessed . | . . . . Terminals . | . . . . Fabricators . | . . . . Repair Stations . | . . . . Recycling Units . | . . . . Scanalyzers . | . . . . Garrison Access . | . . . . Total Hacks . | . . . . Successful . | . . . . Failed . | . . . . Catastrophic . | . . . . Database Lockouts . | . . . . Manual . | . . . . Terminals . | . . . . Fabricators . | . . . . Repair Stations . | . . . . Recycling Units . | . . . . Scanalyzers . | . . . . Garrison Access . | . . . . Terminal Hacks . | . . . . Fabricator Hacks . | . . . . Repair Station Hacks . | . . . . Recycling Unit Hacks . | . . . . Scanalyzer . | . . . . Garrison Access Hacks . | . . . . Unauthorized Hacks . | . . . . Terminals . | . . . . Fabricators . | . . . . Repair Stations . | . . . . Recycling Units . | . . . . Scanalyzers . | . . . . Garrison Access . | . . . . Data Cores Recovered . | . . . . Used . | . . . . Hacking Detections . | . . . . Full Trace Events . | . . . . Feedback Events . | . . . . Feedback Blocked . | . . . . Robot Schematics Acquired . | . . . . Robots Built . | . . . . Authchips . | . . . . Time . | . . . . Total Robot Build Rating . | . . . . Part Schematics Acquired . | . . . . Parts Built . | . . . . Authchips . | . . . . Time . | . . . . Total Part Build Rating . | . . . . Parts Repaired . | . . . . Time . | . . . . Parts Recycled . | . . . . Recycled Matter . | . . . . Retrieved Matter . | . . . . Retrieved Components . | . . . . Parts Scanalyzed . | . . . . Part Schematics Acquired . | . . . . Parts Damaged . | . . . . Bothacking | -11 -10 -10 -9 ------------ Run | Yrd Mat Min Mat Used RIF Installer . | . . . . Robots Hacked . | . . . . Non-combat . | . . . . Combat . | . . . . Robot Hacks Applied . | . . . . Relay Couplers Released . | . . . . Fabnet Peak Effective % . | . . . . Robots Rewired . | . . . . Allies Hacked . | . . . . Hacks Repelled . | . . . . Allies | -11 -10 -10 -9 -------- Run | Yrd Mat Min Mat Total Allies . | . . . . Largest Group . | . . . . Highest-Rated Group . | . . . . Highest-Rated Ally . | . . . . Total Orders . | . . . . Ally Attacks . | . . . . Total Damage . | . . . . Kills . | . . . . Allies Corrupted . | . . . . Allies Melted . | . . . . Intel | -11 -10 -10 -9 ------- Run | Yrd Mat Min Mat Robot Analysis Total . | . . . . Derelict Logs Recovered . | . . . . Drone Launches . | . . . . Drone Recoveries . | . . . . Exploration | -11 -10 -10 -9 ------------- Run | Yrd Mat Min Mat Turns Passed 1606 | 86 637 143 740 Spaces Moved 671 | 84 397 79 111 Core 104 | 49 . . 55 Treads 327 | . 298 29 . Legs . | . . . . Wheels 184 | 35 99 50 . Hover . | . . . . Flight 56 | . . . 56 Fastest Speed 50 | 50 90 130 350 Average Speed 216 | 83 142 163 617 Slowest Speed 765 | 150 160 240 765 Overloaded Moves . | . . . . Propulsion Burnouts . | . . . . Robots Hopped . | . . . . Cave-ins Triggered 1 | . 1 . . Exploration Rate (%) 23 | 4 55 15 18 Regions Visited 3 Branch Regions 1 Pre-discovered Areas . | . . . . Known Exits Taken . | . . . . Unknown Exits Taken 3 | 1 1 1 . Scrap Searched 1 | . . 1 . Spaces Dug . | . . . . Terrain Destroyed 127 | . 69 . 58 Melee . | . . . . Projectile . | . . . . AOE 127 | . 69 . 58 Terrain Rammed . | . . . . Walls Destroyed . | . . . . Machines Disabled . | . . . . Actions | -11 -10 -10 -9 --------- Run | Yrd Mat Min Mat Total 759 | 97 436 89 137 Wait . | . . . . Move 668 | 83 396 78 111 Hop . | . . . . Pick Up 22 | 8 9 4 1 Fast Attach 4 | 4 . . . Attach 10 | 2 1 4 3 Detach . | . . . . Swap 9 | . 6 1 2 Drop 3 | . 3 . . Fire 43 | . 21 2 20 Melee . | . . . . Ram . | . . . . Kick . | . . . . Crush . | . . . . Escape Stasis . | . . . . Rewire . | . . . . Trap . | . . . . Miscellaneous . | . . . . Route ------- -11/Scrapyard -10/Materials (discovered 2 exits: [*Mat] / [*Min]) -10/Mines -9/Materials (discovered 1 exit: [*Sto]) History --------- Turn | Location | Event 23 | -11/Scrapyard | Discovered new exit (range 15) 87 | -11/Scrapyard | Entered Materials 307 | -10/Materials | Build established: Mutant 345 | -10/Materials | Discovered new exit (range 5) 646 | -10/Materials | Crushed by falling debris 677 | -10/Materials | Lost 3 parts (1p1u1w) 685 | -10/Materials | Discovered new exit (range 16) 724 | -10/Materials | Entered Mines 727 | -10/Mines | Met a Derelict bent on vengeance 734 | -10/Mines | Assembled infested the area 739 | -10/Mines | Assisted by a Guerilla fighting off Assembled 846 | -10/Mines | Discovered new exit (range 14) 867 | -10/Mines | Entered Materials 867 | -9/Materials | Evolved 2 slots: Power x1, Propulsion x1 1503 | -9/Materials | Core integrity fell below 50% 1510 | -9/Materials | Discovered new exit (range 15) 1512 | -9/Materials | Lost 4 parts (1p1n1u1w) 1528 | -9/Materials | Core integrity fell below 20% 1607 | -9/Materials | Destroyed by G-34 Mercenary with Small Laser Last Messages --------------- R-06 Scavenger collects Welding Torch. K-01 Serf collects debris. U-05 Engineer lays Concrete. K-01 Serf collects debris. U-05 Engineer lays Concrete. R-06 Scavenger collects Visual Processing Unit. K-01 Serf collects debris. U-05 Engineer lays Concrete. U-05 Engineer builds a Wall. R-06 Scavenger collects Wheel. U-05 Engineer lays Concrete. U-05 Engineer builds a Wall. The unstable cave ceiling collapses. K-01 Serf collects debris. U-05 Engineer lays Concrete. K-01 Serf collects debris. U-05 Engineer builds a Wall. W-16 Scout destroyed. Lgt. Assault Rifle destroyed. K-01 Serf collects debris. Map ----- +----------------------------------------------------+ | ?????????????????????????????????????????????????? | | ?????????????????????????????????????????????????? | | ?????????????????????????????????????????????????? | | ?????????????????????????????????????????????????? | | ?????????????????????????????????????????????????? | | ?????????????????????????????????????????????????? | | ?????????????????????????????????????????????????? | | ?????????????????????????????????????????????????? | | ?????????????????????????????????????????????????? | | ?????????????????????????????????????????????????? | | ?????????????????????????????????????????????????? | | ?????????????????????????????????????? ??????? | | ?????????????????????????????????????# ?????? | | ?????????????????????????????????????# ??? ?? | | ???????????????????##???????????????## ?? ## | | ???????????????????? ##+##??????????# ? | | ????????????????????? ########??# ? | | ????????????????????? # [ #??# """ | | ?????????????????????? # ] [#??# """ | | ??????????????????????#t # ##?# """ | | ??????????????????????# # "" ### | | ??????????????????????# + * | | ??????????????????????# # %= """ | | ?????????????????????## ### "" | | ?????????????????????# k ## # | | ?????????????????????# @ | | ?????????????????????# < | | ?????????????????????# =% u | | ?????????????????????# ## ### ]][ | | ?????????????????????## ### # k][[ | | ??????????????????????# #?# ### ][ | | ????????????????????? + #?## #?# | | ???????????????????? # #??# #?# | | ??????????????????"" # #??#+#?##+####### | | ??????????????????"" ?#kg ????????? ?? # | | ?????????????????? ??#a g????????? ""??? # | | ??????????????????#???#w ??????????""????# | | ??????????????????????# ??????????""????# | | ??????????????????????# ????????????????# | | ?????????????????????? ????????????????# | | ??????????????????????? ????????######### | | ????????????????????????????????? | | ??????????????????????????????? | | ???????????????????????????????? | | ???????????????????????????????? ##########+### | | ????????????????????????????????????????# %# | | ???????????????????????????????????????## # | | ???????????????????????????????????????# [[ # | | ????????????????????????????????????????#[ T # | | ????????????????????????????????????????# "" # | +----------------------------------------------------+ Best States ------------- Heat Dissipation 42 Energy Generation 15 Energy Capacity 400 Matter Stores 286 Matter Capacity 300 Sight Range 16 Terrain Scan Density 10 Armor Coverage 150 Evasion (%) 50 Recoil Reduction 2 Item Schematics ----------------- None Robot Schematics ------------------ None Fabricated ------------ Nothing Alien Tech Used ----------------- None Achievements -------------- Unlikely Earthworm Challenges ------------ None Game ------ Seed MissileGaussKinecellerator Manual? 0 Play Time 00:17:53 Cumulative 1.2 hours Start 2025.01.04 @ 08:45:27 End 2025.01.04 @ 10:01:03 Sessions 1 Manual Loads 0 Difficulty Rogue Special Mode None Game No. 4 Rogue 4 Adventurer 0 Explorer 0 Win Type - Total 0 Types 0/0/0/0/0/0/0/0/0 Lore% 0 Gallery% 3 Achievement% 5 Wizard Run 0 Options --------- Layout 1 ASCII 0 Keyboard 0 Movement Arrows Keybinds 0 Fullscreen 2 Font 32/SmallcapsGlow Map View 65x17 Zoom Use 100% Tactical HUD 0 Map Filters NONE Filters NONE Steam 1 RUN: dc79c81f-973a-4dfc-878a-12cbcb71743e